[Event "SVK-ch Open 2018"]
[Site "Banska Stiavnica"]
[Date "2018.07.10"]
[Round "4"]
[White "Tomanek, Rafael"]
[Black "Kostolansky, Sebastian Lukas"]
[Result "0-1"]
[ECO "A48"]
[WhiteElo "1939"]
[BlackElo "2197"]
[Annotator "NA"]
[PlyCount "78"]
[EventDate "2018.07.07"]
[EventType "swiss"]
[EventCountry "SVK"]
[SourceTitle "playchess.com"]
[Source "ChessBase"]
[SourceQuality "1"]
[TimeControl "40/5400+30:1800+30"]

1. d4 {[%emt 0:00:00]} Nf6 {[%emt 0:00:00]} 2. Nf3 {[%emt 0:00:00]} g6 {[%emt 0:00:00]} 3. c4 {[%emt 0:00:00]} Bg7 {[%emt 0:00:04]} 4. Nc3 {[%emt 0:00:00]} O-O {[%emt 0:00:14]} 5. e4 {[%emt 0:00:09]} d6 {[%emt 0:00:12]} 6. h3 {[%emt 0:00:26]} c5 {[%emt 0:08:33]} 7. d5 {[%emt 0:01:31]} e5 {[%emt 0:02:03]} 8. Be3 {[%emt 0:02:19]} Na6 {[%emt 0:01:18]} 9. g4 {[%emt 0:05:10]} Nc7 {[%emt 0:04:02]} 10. Bd3 {[%emt 0:03:08]} Bd7 {[%emt 0:05:11]} 11. a4 {[%emt 0:04:25]} Na6 {[%emt 0:16:10]} 12. Qd2 {[%emt 0:04:59]} Nb4 {[%emt 0:02:32]} 13. Ke2 {[%emt 0:03:06]} a6 {[%emt 0:08:11]} 14. Ne1 {[%emt 0:05:23]} b5 {[%emt 0:10:56]} 15. axb5 {[%emt 0:10:53]} axb5 {[%emt 0:00:17]} 16. Nc2 {[%emt 0:03:32]} Nxd3 {[%emt 0:15:52]} 17. Qxd3 {[%emt 0:02:04]} b4 {[%emt 0:02:56]} 18. Rxa8 {[%emt 0:04:34]} Qxa8 {[%emt 0:00:05]} 19. Ra1 {[%emt 0:00:09]} Qb7 {[%emt 0:02:57]} 20. Nd1 {[%emt 0:02:09]} Ra8 {[%emt 0:02:28]} 21. f3 {[%emt 0:04:06]} Rxa1 {[%emt 0:01:26]} 22. Nxa1 {[%emt 0:00:04]} Qa6 {[%emt 0:00:07]} 23. Nb3 {[%emt 0:04:50]} Ne8 {[%emt 0:00:34]} 24. Nd2 {[%emt 0:04:07]} f5 {[%emt 0:02:28]} 25. Bg5 {[%emt 0:05:37]} Qc8 {[%emt 0:04:05]} 26. Ne3 {[%emt 0:06:18]} h6 {[%emt 0:02:27]} 27. Bh4 {[%emt 0:00:41]} fxg4 {[%emt 0:01:08]} 28. hxg4 {[%emt 0:00:47]} Bf6 {[%emt 0:00:07]} 29. Ng2 {[%emt 0:01:24]} Bxh4 {[%emt 0:04:14]} 30. Nxh4 {[%emt 0:00:03]} Qd8 {[%emt 0:00:10]} 31. Ng2 {[%emt 0:01:30]} h5 {[%emt 0:00:09]} 32. gxh5 {[%emt 0:01:01]} Qg5 {[%emt 0:00:25]} 33. Ne3 {[%emt 0:02:19]} Nf6 {[%emt 0:04:01]} 34. Ndf1 {[%emt 0:06:54]} Nxh5 {[%emt 0:00:43]} 35. Qb1 {[%emt 0:00:16]} Nf4+ {[%emt 0:00:24]} 36. Kd2 {[%emt 0:00:15]} Qh4 {[%emt 0:00:48]} 37. Kc2 {[%emt 0:02:29]} Qf2+ {[%emt 0:00:35]} 38. Kb3 {[%emt 0:00:06]} Ne2 {[%emt 0:00:31]} 39. Ka2 {[%emt 0:01:07]} Nc3+ {[%emt 0:00:05]} 0-1

[Event "SVK-ch Open 2018"]
[Site "Banska Stiavnica"]
[Date "2018.07.10"]
[Round "4"]
[White "Budinsky, Jozef"]
[Black "Hrbek, Stepan"]
[Result "0-1"]
[ECO "B24"]
[WhiteElo "1931"]
[BlackElo "2129"]
[Annotator "NA"]
[PlyCount "111"]
[EventDate "2018.07.07"]
[EventType "swiss"]
[EventCountry "SVK"]
[SourceTitle "playchess.com"]
[Source "ChessBase"]
[SourceQuality "1"]
[TimeControl "40/5400+30:1800+30"]

1. e4 {[%emt 0:00:00]} c5 {[%emt 0:00:00]} 2. Nc3 {[%emt 0:00:00]} Nc6 {[%emt 0:00:00]} 3. g3 {[%emt 0:00:27]} g6 {[%emt 0:01:34]} 4. Bg2 {[%emt 0:00:21]} Bg7 {[%emt 0:00:12]} 5. Nge2 {[%emt 0:00:07]} e5 {[%emt 0:05:01]} 6. d3 {[%emt 0:00:39]} Nge7 {[%emt 0:00:04]} 7. Be3 {[%emt 0:00:35]} d6 {[%emt 0:00:07]} 8. Qd2 {[%emt 0:00:15]} Nd4 {[%emt 0:03:06]} 9. O-O {[%emt 0:01:03]} O-O {[%emt 0:07:47]} 10. a4 {[%emt 0:12:23]} Be6 {[%emt 0:07:07]} 11. f4 {[%emt 0:07:15]} f5 {[%emt 0:01:20]} 12. Nd5 {[%emt 0:04:25]} Nxd5 {[%emt 0:11:24]} 13. exd5 {[%emt 0:00:04]} Nxe2+ {[%emt 0:00:11]} 14. Qxe2 {[%emt 0:00:36]} Bd7 {[%emt 0:00:27]} 15. c3 {[%emt 0:00:53]} Qe7 {[%emt 0:07:32]} 16. Qd2 {[%emt 0:05:15]} Rae8 {[%emt 0:04:58]} 17. Rfe1 {[%emt 0:01:04]} Qf7 {[%emt 0:10:43]} 18. fxe5 {[%emt 0:12:45]} Bxe5 {[%emt 0:01:40]} 19. Bh6 {[%emt 0:01:29]} Bg7 {[%emt 0:02:14]} 20. Bxg7 {[%emt 0:10:25]} Qxg7 {[%emt 0:00:32]} 21. a5 {[%emt 0:21:50]} Qf6 {[%emt 0:20:12]} 22. h4 {[%emt 0:05:10]} Qd8 {[%emt 0:05:27]} 23. Qf4 {[%emt 0:05:21]} Qf6 {[%emt 0:00:52]} 24. Qd2 {[%emt 0:03:40]} Kg7 {[%emt 0:02:30]} 25. Rxe8 {[%emt 0:00:18]} Rxe8 {[%emt 0:00:44]} 26. Rf1 {[%emt 0:00:37]} Qe5 {[%emt 0:02:58]} 27. Qf4 {[%emt 0:01:20]} Qe3+ {[%emt 0:02:27]} 28. Qxe3 {[%emt 0:00:29]} Rxe3 {[%emt 0:00:04]} 29. Rf3 {[%emt 0:00:11]} Rxf3 {[%emt 0:00:27]} 30. Bxf3 {[%emt 0:00:01]} Kf6 {[%emt 0:00:25]} 31. d4 {[%emt 0:00:13]} cxd4 {[%emt 0:00:03]} 32. cxd4 {[%emt 0:00:01]} g5 {[%emt 0:01:15]} 33. Kf2 {[%emt 0:03:15]} Bb5 {[%emt 0:02:34]} 34. Ke3 {[%emt 0:00:29]} Bc4 {[%emt 0:00:14]} 35. Bg2 {[%emt 0:01:30]} h6 {[%emt 0:00:19]} 36. Bf3 {[%emt 0:00:22]} Kg6 {[%emt 0:00:34]} 37. b4 {[%emt 0:01:18]} Kf6 {[%emt 0:00:45]} 38. Bg2 {[%emt 0:00:42]} Kg6 {[%emt 0:00:04]} 39. Bf3 {[%emt 0:00:21]} Ba2 {[%emt 0:00:43]} 40. Kf2 {[%emt 0:02:13]} Bb1 {[%emt 0:00:45]} 41. Ke3 {[%emt 0:06:06]} Kf6 {[%emt 0:07:27]} 42. Bg2 {[%emt 0:04:02]} Ba2 {[%emt 0:17:38]} 43. Bf3 {[%emt 0:01:07]} Bb1 {[%emt 0:00:06]} 44. Bg2 {[%emt 0:00:12]} Kg6 {[%emt 0:00:20]} 45. Bf3 {[%emt 0:00:17]} a6 {[%emt 0:00:07]} 46. Kf2 {[%emt 0:10:31]} gxh4 {[%emt 0:01:58]} 47. gxh4 {[%emt 0:00:02]} Be4 {[%emt 0:00:13]} 48. Kg3 {[%emt 0:06:52]} f4+ {[%emt 0:04:46]} 49. Kxf4 {[%emt 0:02:26]} Bxf3 {[%emt 0:00:03]} 50. Kxf3 {[%emt 0:00:17]} Kf5 {[%emt 0:00:05]} 51. h5 {[%emt 0:02:42]} Kg5 {[%emt 0:00:24]} 52. Ke4 {[%emt 0:00:01]} Kg4 {[%emt 0:00:05]} 53. Ke3 {[%emt 0:01:27]} Kxh5 {[%emt 0:00:04]} 54. Kf4 {[%emt 0:00:40]} Kg6 {[%emt 0:00:07]} 55. Kg4 {[%emt 0:00:40]} Kf6 {[%emt 0:00:21]} 56. Kf4 {[%emt 0:01:16] Ke5+} 0-1

[Event "SVK-ch Open 2018"]
[Site "Banska Stiavnica"]
[Date "2018.07.10"]
[Round "4"]
[White "Huncar, Martin"]
[Black "Bojda, Lubomir"]
[Result "0-1"]
[ECO "B11"]
[WhiteElo "1840"]
[BlackElo "2064"]
[Annotator "NA"]
[PlyCount "140"]
[EventDate "2018.07.07"]
[EventType "swiss"]
[EventCountry "SVK"]
[SourceTitle "playchess.com"]
[Source "ChessBase"]
[SourceQuality "1"]
[TimeControl "40/5400+30:1800+30"]

1. e4 {[%emt 0:00:00]} c6 {[%emt 0:00:00]} 2. Nc3 {[%emt 0:00:05]} d5 {[%emt 0:00:09]} 3. Nf3 {[%emt 0:00:12]} Bg4 {[%emt 0:02:15]} 4. h3 {[%emt 0:01:00]} Bxf3 {[%emt 0:00:56]} 5. Qxf3 {[%emt 0:00:07]} e6 {[%emt 0:00:02]} 6. exd5 {[%emt 0:04:38]} cxd5 {[%emt 0:00:42]} 7. Bb5+ {[%emt 0:07:13]} Nc6 {[%emt 0:01:17]} 8. b3 {[%emt 0:02:39]} Nf6 {[%emt 0:02:16]} 9. Bb2 {[%emt 0:00:51]} Bd6 {[%emt 0:00:20]} 10. O-O {[%emt 0:02:27]} O-O {[%emt 0:00:16]} 11. Bxc6 {[%emt 0:00:26]} bxc6 {[%emt 0:00:06]} 12. Ne2 {[%emt 0:05:25]} Nd7 {[%emt 0:03:33]} 13. Ng3 {[%emt 0:26:00]} Qg5 {[%emt 0:08:24]} 14. d3 {[%emt 0:05:21]} Ne5 {[%emt 0:03:12]} 15. Qh5 {[%emt 0:07:08]} Qxh5 {[%emt 0:10:38]} 16. Nxh5 {[%emt 0:00:03]} f6 {[%emt 0:00:47]} 17. g4 {[%emt 0:06:06]} Nf3+ {[%emt 0:06:47]} 18. Kg2 {[%emt 0:00:28]} Nh4+ {[%emt 0:00:07]} 19. Kg1 {[%emt 0:02:29]} e5 {[%emt 0:00:29]} 20. Kh1 {[%emt 0:05:13]} Rae8 {[%emt 0:01:19]} 21. Rae1 {[%emt 0:00:18]} Bc5 {[%emt 0:03:09]} 22. Re2 {[%emt 0:02:37]} g6 {[%emt 0:02:32]} 23. Ng3 {[%emt 0:00:53]} Bd6 {[%emt 0:12:14]} 24. Rfe1 {[%emt 0:01:32]} Nf3 {[%emt 0:00:24]} 25. Rf1 {[%emt 0:00:37]} Ng5 {[%emt 0:00:14]} 26. Kg2 {[%emt 0:00:37]} Ne6 {[%emt 0:00:04]} 27. Kh2 {[%emt 0:04:33]} Nf4 {[%emt 0:01:31]} 28. Ree1 {[%emt 0:00:35]} Bb4 {[%emt 0:00:33]} 29. Rd1 {[%emt 0:03:49]} Rf7 {[%emt 0:00:43]} 30. c4 {[%emt 0:00:39]} Rd7 {[%emt 0:03:52]} 31. a3 {[%emt 0:02:57]} Ba5 {[%emt 0:02:36]} 32. b4 {[%emt 0:00:01]} Bc7 {[%emt 0:00:18]} 33. c5 {[%emt 0:00:33]} Rb8 {[%emt 0:01:45]} 34. Bc3 {[%emt 0:02:39]} Kf7 {[%emt 0:00:26]} 35. f3 {[%emt 0:00:22]} Ke6 {[%emt 0:06:01]} 36. Rfe1 {[%emt 0:02:47]} d4 37. Bb2 {[%emt 0:01:32]} a5 {[%emt 0:04:01]} 38. Bc1 {[%emt 0:00:05]} Nd5 {[%emt 0:00:10]} 39. bxa5 {[%emt 0:03:11]} Bxa5 {[%emt 0:00:05]} 40. Rf1 {[%emt 0:01:19]} Ne3 {[%emt 0:05:37]} 41. Rfe1 {[%emt 0:13:53]} Nxd1 {[%emt 0:02:37]} 42. Rxd1 {[%emt 0:00:03]} Rb1 {[%emt 0:00:42]} 43. Rf1 {[%emt 0:03:59]} Rdb7 {[%emt 0:01:09]} 44. f4 {[%emt 0:01:34]} exf4 {[%emt 0:02:14]} 45. Bxf4 {[%emt 0:00:33]} R7b2+ {[%emt 0:01:52]} 46. Kg1 {[%emt 0:00:37]} Rxf1+ {[%emt 0:01:10]} 47. Kxf1 {[%emt 0:00:48]} f5 {[%emt 0:01:41]} 48. gxf5+ {[%emt 0:01:37]} gxf5 {[%emt 0:00:05]} 49. Ne2 {[%emt 0:02:22]} Bc3 {[%emt 0:01:16]} 50. Bd6 {[%emt 0:02:14]} Kd7 {[%emt 0:00:35]} 51. Nf4 {[%emt 0:01:11]} Bd2 {[%emt 0:00:39]} 52. Ne2 {[%emt 0:01:31]} Be3 {[%emt 0:01:00]} 53. Be5 {[%emt 0:00:22]} Ke6 {[%emt 0:01:07]} 54. Bxd4 {[%emt 0:00:32]} Rxe2 {[%emt 0:00:15]} 55. Kxe2 {[%emt 0:00:42]} Bxd4 {[%emt 0:00:05]} 56. a4 {[%emt 0:00:51]} Bxc5 {[%emt 0:00:09]} 57. Kf3 {[%emt 0:00:10]} Ke5 {[%emt 0:00:07]} 58. a5 {[%emt 0:00:30]} Ba7 {[%emt 0:00:51]} 59. a6 {[%emt 0:00:53]} Kd4 {[%emt 0:00:50]} 60. Kf4 {[%emt 0:01:01]} Kxd3 {[%emt 0:00:16]} 61. Kxf5 {[%emt 0:00:08]} c5 {[%emt 0:00:32]} 62. Kg5 {[%emt 0:00:29]} c4 {[%emt 0:00:17]} 63. Kh6 {[%emt 0:00:03]} c3 {[%emt 0:00:11]} 64. Kxh7 {[%emt 0:00:03]} c2 {[%emt 0:00:10]} 65. h4 {[%emt 0:00:04]} c1=Q {[%emt 0:00:14]} 66. h5 {[%emt 0:00:01]} Qa3 {[%emt 0:00:27]} 67. h6 {[%emt 0:00:14]} Qxa6 {[%emt 0:00:18]} 68. Kh8 {[%emt 0:00:18]} Qxh6+ {[%emt 0:00:11]} 69. Kg8 {[%emt 0:00:05]} Qg6+ {[%emt 0:00:44]} 70. Kf8 {[%emt 0:00:10]} Bc5# {[%emt 0:00:08]} 0-1

[Event "SVK-ch Open 2018"]
[Site "Banska Stiavnica"]
[Date "2018.07.10"]
[Round "4"]
[White "Gonda, Jozef"]
[Black "Bartek, Ladislav"]
[Result "0-1"]
[ECO "A45"]
[WhiteElo "1832"]
[BlackElo "2049"]
[Annotator "NA"]
[PlyCount "64"]
[EventDate "2018.07.07"]
[EventType "swiss"]
[EventCountry "SVK"]
[SourceTitle "playchess.com"]
[Source "ChessBase"]
[SourceQuality "1"]
[TimeControl "40/5400+30:1800+30"]

1. d4 Nf6 {[%emt 0:00:00]} 2. Bg5 {[%emt 0:00:00]} Ne4 {[%emt 0:00:00]} 3. Bf4 {[%emt 0:00:39]} c5 {[%emt 0:00:00]} 4. dxc5 {[%emt 0:04:46]} Qa5+ {[%emt 0:01:39]} 5. c3 {[%emt 0:01:07]} Qxc5 {[%emt 0:00:26]} 6. Be3 {[%emt 0:02:54]} Qb5 {[%emt 0:02:28]} 7. Qc2 {[%emt 0:03:15]} d5 {[%emt 0:00:32]} 8. Nf3 {[%emt 0:02:48]} Nc6 {[%emt 0:01:53]} 9. Nbd2 e5 {[%emt 0:06:31]} 10. a4 {[%emt 0:20:56]} Qa6 {[%emt 0:01:13]} 11. Nxe4 {[%emt 0:00:35]} dxe4 {[%emt 0:00:56]} 12. Qxe4 {[%emt 0:02:26]} Be6 {[%emt 0:05:51]} 13. Ng5 {[%emt 0:21:06]} Bb3 {[%emt 0:00:55]} 14. f4 {[%emt 0:01:58]} f6 {[%emt 0:05:03]} 15. Nf3 {[%emt 0:02:56]} O-O-O {[%emt 0:00:43]} 16. fxe5 {[%emt 0:01:00]} Nxe5 {[%emt 0:02:04]} 17. Nxe5 {[%emt 0:06:02]} fxe5 {[%emt 0:02:43]} 18. Bg5 {[%emt 0:13:51]} Rd7 {[%emt 0:00:27]} 19. Qxe5 {[%emt 0:04:17]} Qg6 {[%emt 0:02:38]} 20. Bf4 {[%emt 0:03:42]} Bd6 {[%emt 0:00:21]} 21. Qe3 {[%emt 0:01:57]} Rf8 {[%emt 0:04:52]} 22. g3 {[%emt 0:00:31]} Re8 {[%emt 0:03:17]} 23. Qxa7 {[%emt 0:01:39]} Bxf4 {[%emt 0:01:03]} 24. gxf4 {[%emt 0:00:02]} Qd6 {[%emt 0:03:24]} 25. Qa8+ {[%emt 0:01:34]} Kc7 {[%emt 0:00:29]} 26. Qxe8 {[%emt 0:00:49]} Qd2+ {[%emt 0:00:44]} 27. Kf2 {[%emt 0:00:19]} Qxf4+ {[%emt 0:00:17]} 28. Kg1 {[%emt 0:00:29]} Qg5+ {[%emt 0:00:29]} 29. Bg2 {[%emt 0:00:08]} Bd5 {[%emt 0:00:52]} 30. Qxd7+ {[%emt 0:02:09]} Kxd7 {[%emt 0:00:09]} 31. e4 {[%emt 0:00:09]} Qe3+ {[%emt 0:00:17]} 32. Kf1 {[%emt 0:00:56]} Bc4# {[%emt 0:00:07]} 0-1

[Event "SVK-ch Open 2018"]
[Site "Banska Stiavnica"]
[Date "2018.07.10"]
[Round "4"]
[White "Sarkozi, Szabolcs"]
[Black "Lukac, Roman"]
[Result "1/2-1/2"]
[ECO "A45"]
[WhiteElo "1808"]
[BlackElo "2089"]
[Annotator "NA"]
[PlyCount "83"]
[EventDate "2018.07.07"]
[EventType "swiss"]
[EventCountry "SVK"]
[SourceTitle "playchess.com"]
[Source "ChessBase"]
[SourceQuality "1"]
[TimeControl "40/5400+30:1800+30"]

1. d4 {[%emt 0:00:00]} Nf6 {[%emt 0:00:13]} 2. Bf4 {[%emt 0:00:00]} d6 {[%emt 0:02:51]} 3. Nc3 {[%emt 0:00:24]} Nbd7 {[%emt 0:07:03]} 4. Nf3 {[%emt 0:01:57]} g6 {[%emt 0:04:27]} 5. e4 {[%emt 0:00:21]} Bg7 {[%emt 0:01:32]} 6. Qd2 {[%emt 0:00:54]} c6 {[%emt 0:12:42]} 7. Bd3 {[%emt 0:08:24]} O-O {[%emt 0:10:12]} 8. O-O-O {[%emt 0:08:30]} Qa5 {[%emt 0:19:22]} 9. Bh6 {[%emt 0:04:52]} Rd8 {[%emt 0:11:30]} 10. Bxg7 {[%emt 0:02:07]} Kxg7 {[%emt 0:00:44]} 11. h4 {[%emt 0:17:21]} Nf8 {[%emt 0:05:02]} 12. Kb1 {[%emt 0:14:31]} Bg4 {[%emt 0:03:44]} 13. Rdg1 {[%emt 0:04:31]} e5 {[%emt 0:06:18]} 14. Qe3 {[%emt 0:07:24]} Bxf3 {[%emt 0:03:45]} 15. gxf3 {[%emt 0:00:54]} exd4 {[%emt 0:02:26]} 16. Qxd4 {[%emt 0:00:16]} Ne6 {[%emt 0:00:26]} 17. Qe3 {[%emt 0:08:20]} Qe5 {[%emt 0:01:21]} 18. Ne2 {[%emt 0:02:31]} Nh5 {[%emt 0:00:52]} 19. Rg4 {[%emt 0:04:02]} Nf6 {[%emt 0:00:23]} 20. Rg5 {[%emt 0:03:58]} Nxg5 {[%emt 0:00:52]} 21. hxg5 {[%emt 0:00:01]} Nh5 {[%emt 0:00:18]} 22. f4 {[%emt 0:00:16]} Qc5 {[%emt 0:01:46]} 23. Qf3 {[%emt 0:01:17]} Kf8 {[%emt 0:01:27]} 24. f5 {[%emt 0:01:39]} Ke7 {[%emt 0:00:40]} 25. Ng3 {[%emt 0:03:55]} Nxg3 {[%emt 0:01:52]} 26. Qxg3 {[%emt 0:01:26]} Rh8 {[%emt 0:00:29]} 27. f4 {[%emt 0:02:17]} Kd7 {[%emt 0:00:10]} 28. e5 {[%emt 0:00:26]} Rae8 {[%emt 0:00:23]} 29. Re1 {[%emt 0:01:12]} Rhf8 {[%emt 0:00:35]} 30. Qh3 {[%emt 0:00:27]} Kc7 {[%emt 0:00:22]} 31. Qxh7 {[%emt 0:00:32]} gxf5 {[%emt 0:01:00]} 32. a3 {[%emt 0:00:39]} Kb6 {[%emt 0:00:13]} 33. Qxf5 {[%emt 0:00:23]} dxe5 {[%emt 0:00:28]} 34. fxe5 {[%emt 0:00:07]} a5 {[%emt 0:00:26]} 35. Re4 {[%emt 0:00:43]} Qg1+ {[%emt 0:00:59]} 36. Ka2 {[%emt 0:00:09]} Rg8 {[%emt 0:00:10]} 37. Qxf7 {[%emt 0:00:57]} Qxg5 {[%emt 0:00:04]} 38. Qb3+ {[%emt 0:00:39]} Ka7 {[%emt 0:00:29]} 39. Qc3 {[%emt 0:00:23]} Qd8 {[%emt 0:00:31]} 40. Ra4 {[%emt 0:00:36]} Kb8 {[%emt 0:01:17]} 41. Rxa5 {[%emt 0:30:26]} Rg5 {[%emt 0:30:31]} 42. Be4 {[%emt 0:00:00]} 1/2-1/2

[Event "SVK-ch Open 2018"]
[Site "Banska Stiavnica"]
[Date "2018.07.10"]
[Round "4"]
[White "Antal, Jakub"]
[Black "Gajdosik, Andrej"]
[Result "1/2-1/2"]
[ECO "C50"]
[WhiteElo "1787"]
[BlackElo "1992"]
[Annotator "NA"]
[PlyCount "119"]
[EventDate "2018.07.07"]
[EventType "swiss"]
[EventCountry "SVK"]
[SourceTitle "playchess.com"]
[Source "ChessBase"]
[SourceQuality "1"]
[TimeControl "40/5400+30:1800+30"]

1. e4 {[%emt 0:00:00]} e5 {[%emt 0:00:28]} 2. Nf3 {[%emt 0:00:38]} Nc6 {[%emt 0:00:08]} 3. Bc4 {[%emt 0:00:43]} Bc5 {[%emt 0:00:27]} 4. O-O {[%emt 0:00:25]} Nf6 {[%emt 0:00:22]} 5. d3 {[%emt 0:00:52]} O-O {[%emt 0:00:18]} 6. Nbd2 {[%emt 0:01:41]} d6 {[%emt 0:00:40]} 7. c3 {[%emt 0:00:47]} a6 {[%emt 0:03:58]} 8. Bb3 {[%emt 0:00:49]} h6 {[%emt 0:00:53]} 9. h3 {[%emt 0:04:13]} Re8 {[%emt 0:00:51]} 10. Re1 {[%emt 0:02:24]} Be6 {[%emt 0:00:49]} 11. Nf1 {[%emt 0:02:01]} Bxb3 {[%emt 0:20:19]} 12. Qxb3 {[%emt 0:01:53]} b5 {[%emt 0:02:15]} 13. Ng3 {[%emt 0:04:39]} d5 {[%emt 0:05:09]} 14. Nf5 {[%emt 0:22:05]} Qd7 {[%emt 0:05:30]} 15. N3h4 {[%emt 0:05:59]} Kh7 {[%emt 0:04:23]} 16. g4 {[%emt 0:05:36]} Re6 {[%emt 0:07:57]} 17. g5 {[%emt 0:07:47]} hxg5 {[%emt 0:01:41]} 18. Bxg5 {[%emt 0:00:34]} dxe4 {[%emt 0:00:50]} 19. dxe4 {[%emt 0:05:31]} Qd3 {[%emt 0:14:03]} 20. Bxf6 {[%emt 0:06:54]} Rxf6 {[%emt 0:04:04]} 21. Qd5 {[%emt 0:06:20]} Qxd5 {[%emt 0:09:43]} 22. exd5 {[%emt 0:00:12]} g5 {[%emt 0:00:11]} 23. dxc6 {[%emt 0:03:03]} gxh4 {[%emt 0:00:06]} 24. Rxe5 {[%emt 0:00:44]} Rg8+ {[%emt 0:02:38]} 25. Kf1 {[%emt 0:01:04]} Bb6 {[%emt 0:05:39]} 26. Rd1 {[%emt 0:04:26]} Rg5 {[%emt 0:02:10]} 27. Rdd5 {[%emt 0:00:26]} Bxf2 {[%emt 0:02:30]} 28. Kxf2 {[%emt 0:02:06]} Kg6 {[%emt 0:00:05]} 29. Ke3 {[%emt 0:03:08]} Rfxf5 {[%emt 0:00:29]} 30. Rxf5 {[%emt 0:00:05]} Rxf5 {[%emt 0:00:08]} 31. Rd7 {[%emt 0:00:04]} Rf6 {[%emt 0:03:51]} 32. Rxc7 {[%emt 0:00:30]} Kf5 {[%emt 0:00:03]} 33. Rc8 {[%emt 0:05:30]} Rd6 {[%emt 0:02:16]} 34. c7 {[%emt 0:00:41]} Rc6 {[%emt 0:00:10]} 35. Kd4 {[%emt 0:01:37]} Ke6 {[%emt 0:00:17]} 36. Re8+ {[%emt 0:01:00]} Kd7 {[%emt 0:00:04]} 37. c8=Q+ {[%emt 0:00:08]} Rxc8 {[%emt 0:00:06]} 38. Rxc8 {[%emt 0:00:03]} Kxc8 {[%emt 0:00:05]} 39. Ke5 {[%emt 0:01:00]} Kd7 {[%emt 0:00:07]} 40. Kf6 {[%emt 0:01:35]} Kd6 {[%emt 0:00:27]} 41. Kg5 {[%emt 0:30:27]} Ke5 {[%emt 0:30:05]} 42. Kxh4 {[%emt 0:00:09]} Kf4 {[%emt 0:00:14]} 43. b3 {[%emt 0:00:39]} f5 {[%emt 0:00:38]} 44. c4 {[%emt 0:00:00]} bxc4 {[%emt 0:00:00]} 45. bxc4 {[%emt 0:00:00]} Ke3 {[%emt 0:00:00]} 46. c5 {[%emt 0:00:00]} f4 {[%emt 0:00:00]} 47. c6 {[%emt 0:00:00]} f3 {[%emt 0:00:00]} 48. c7 {[%emt 0:00:00]} f2 {[%emt 0:00:00]} 49. c8=Q {[%emt 0:00:00]} f1=Q {[%emt 0:00:00]} 50. Qc5+ {[%emt 0:00:00]} Ke4 {[%emt 0:00:00]} 51. Qe7+ {[%emt 0:00:00]} Kd5 {[%emt 0:00:00]} 52. Qd7+ {[%emt 0:00:00]} Ke5 {[%emt 0:00:00]} 53. Qg4 {[%emt 0:00:00]} Kd5 {[%emt 0:00:00]} 54. Kh5 {[%emt 0:00:00]} Qf7+ {[%emt 0:00:00]} 55. Kh6 {[%emt 0:00:00]} Qf6+ {[%emt 0:00:00]} 56. Kh7 {[%emt 0:00:00]} Qf7+ {[%emt 0:00:00]} 57. Kh8 {[%emt 0:00:00]} Qf6+ {[%emt 0:00:00]} 58. Qg7 {[%emt 0:00:00]} Qh4+ {[%emt 0:00:00]} 59. Qh7 {[%emt 0:00:00]} Qf6+ {[%emt 0:00:00]} 60. Qg7 {[%emt 0:00:00]} 1/2-1/2

[Event "SVK-ch Open 2018"]
[Site "Banska Stiavnica"]
[Date "2018.07.10"]
[Round "4"]
[White "Ucekajova, Veronika"]
[Black "Bronis, Marian"]
[Result "1/2-1/2"]
[ECO "B08"]
[WhiteElo "1757"]
[BlackElo "2101"]
[Annotator "NA"]
[PlyCount "40"]
[EventDate "2018.07.07"]
[EventType "swiss"]
[EventCountry "SVK"]
[SourceTitle "playchess.com"]
[Source "ChessBase"]
[SourceQuality "1"]
[TimeControl "40/5400+30:1800+30"]

1. e4 {[%emt 0:00:00]} g6 {[%emt 0:00:56]} 2. d4 {[%emt 0:00:00]} Bg7 {[%emt 0:00:25]} 3. Nf3 {[%emt 0:00:16]} d6 {[%emt 0:01:34]} 4. Nc3 {[%emt 0:00:26]} Nf6 {[%emt 0:00:37]} 5. Be2 {[%emt 0:00:32]} Nc6 {[%emt 0:01:01]} 6. O-O {[%emt 0:01:04]} O-O {[%emt 0:00:23]} 7. h3 {[%emt 0:02:02]} e5 {[%emt 0:05:09]} 8. dxe5 {[%emt 0:00:46]} Nxe5 {[%emt 0:07:08]} 9. Nxe5 {[%emt 0:04:28]} dxe5 10. Bg5 c6 {[%emt 0:10:20]} 11. Qxd8 {[%emt 0:10:41]} Rxd8 {[%emt 0:01:06]} 12. Rad1 {[%emt 0:00:08]} Be6 {[%emt 0:03:08]} 13. Rxd8+ {[%emt 0:02:37]} Rxd8 {[%emt 0:00:24]} 14. Rd1 {[%emt 0:00:08]} Rxd1+ {[%emt 0:03:01]} 15. Bxd1 {[%emt 0:00:07]} Nd7 {[%emt 0:00:36]} 16. a3 {[%emt 0:03:00]} Bf8 {[%emt 0:02:04]} 17. Bg4 {[%emt 0:09:19]} f5 {[%emt 0:00:42]} 18. exf5 {[%emt 0:00:48]} gxf5 {[%emt 0:00:09]} 19. Be2 {[%emt 0:01:56]} a5 {[%emt 0:05:42]} 20. Bd8 {[%emt 0:02:57]} Bh6 {[%emt 0:07:15]} 1/2-1/2

[Event "SVK-ch Open 2018"]
[Site "Banska Stiavnica"]
[Date "2018.07.11"]
[Round "5"]
[White "Druska, Juraj"]
[Black "Aczel, Gergely"]
[Result "0-1"]
[ECO "B53"]
[WhiteElo "2439"]
[BlackElo "2543"]
[Annotator "ChessBase"]
[PlyCount "56"]
[EventDate "2018.07.07"]
[EventType "swiss"]
[EventCountry "SVK"]
[SourceTitle "playchess.com"]
[Source "ChessBase"]
[SourceQuality "1"]
[TimeControl "40/5400+30:1800+30"]

1. e4 {[%emt 0:00:30]} c5 {[%emt 0:00:00]} 2. Nf3 {[%emt 0:00:05]} d6 {[%emt 0:00:00]} 3. d4 {[%emt 0:00:05]} cxd4 {[%emt 0:00:00]} 4. Qxd4 {[%emt 0:00:06]} Nf6 {[%emt 0:00:50]} 5. Be2 {[%emt 0:00:20]} Nc6 {[%emt 0:00:30]} 6. Qe3 {[%emt 0:00:04]} g6 {[%emt 0:00:30]} 7. O-O {[%emt 0:00:04]} Bg7 {[%emt 0:00:13]} 8. Rd1 {[%emt 0:00:34]} O-O {[%emt 0:04:38]} 9. h3 {[%emt 0:05:35]} Nd7 {[%emt 0:04:10]} 10. c4 {[%emt 0:02:01]} Qb6 {[%emt 0:05:18]} 11. Qxb6 {[%emt 0:23:52]} axb6 {[%emt 0:04:43]} 12. Nbd2 {[%emt 0:18:18]} Nc5 {[%emt 0:00:18]} 13. a3 {[%emt 0:01:34]} f5 {[%emt 0:03:10]} 14. Rb1 {[%emt 0:11:05]} fxe4 {[%emt 0:05:14]} 15. Ng5 {[%emt 0:00:30]} Bf5 {[%emt 0:48:59]} 16. g4 {[%emt 0:01:08]} Nd4 {[%emt 0:00:40]} 17. Bf1 {[%emt 0:09:22]} e3 {[%emt 0:00:51]} 18. gxf5 {[%emt 0:00:24]} e2 {[%emt 0:04:36]} 19. Bxe2 {[%emt 0:10:18]} Nxe2+ {[%emt 0:00:02]} 20. Kf1 {[%emt 0:00:06]} Nxc1 {[%emt 0:03:39]} 21. Rdxc1 {[%emt 0:01:03]} Bh6 {[%emt 0:03:28]} 22. Ngf3 {[%emt 0:02:59]} Rxf5 {[%emt 0:00:07]} 23. Kg2 {[%emt 0:00:03]} Raf8 {[%emt 0:00:41]} 24. Rf1 {[%emt 0:00:02]} Nd3 {[%emt 0:01:01]} 25. Rbd1 {[%emt 0:01:06]} Bxd2 {[%emt 0:03:40]} 26. Nxd2 {[%emt 0:00:06]} Rxf2+ {[%emt 0:00:09]} 27. Rxf2 {[%emt 0:00:03]} Rxf2+ {[%emt 0:00:07]} 28. Kg3 {[%emt 0:00:02]} Nxb2 {[%emt 0:00:59]} 0-1